bitfinex/quotes_ETHUSD_20250507
["timestamp","ask_amount","ask_price","bid_price","bid_amount"]
[1746612597827,0.8209,1846.7,1846.0,11.45703674]
[1746612597828,5.41609658,1846.4,1846.0,5.41699587]
[1746612598147,3.0,1846.5,1846.2,5.41642605]
[1746612598325,3.0,1846.5,1846.3,5.41623069]
[1746612599065,3.0,1846.5,1846.2,6.23962893]
[1746612599280,3.0,1846.5,1846.2,6.23945248]
[1746612599769,3.0,1846.5,1846.3,18.0]
[1746612599943,5.41594454,1846.4,1846.3,18.0]
[1746612600536,13.92209132,1846.5,1846.3,18.0]
[1746612600757,3.39881807,1846.5,1846.3,23.41619519]
[1746612601170,3.39881807,1846.5,1846.3,18.0]
[1746612601464,3.0,1846.5,1846.3,23.41612528]
[1746612602272,3.0,1846.5,1846.3,18.0]
[1746612602439,3.0,1846.5,1846.3,23.41622459]
[1746612602646,3.0,1846.5,1846.3,18.0]
[1746612604602,3.0,1846.5,1846.3,5.41620638]
[1746612604741,3.0,1846.5,1846.2,6.1666341]
[1746612604941,3.0,1846.5,1846.3,5.41616542]
[1746612605937,0.8209,1846.6,1846.3,0.0541608]
[1746612606268,8.22674051,1846.8,1846.4,5.41571683]
[1746612606269,3.0,1846.7,1846.4,5.41571683]
[1746612606768,3.0,1846.7,1846.5,5.41554631]
[1746612608273,8.41510274,1846.7,1846.4,5.41571683]
[1746612608580,2.26176695,1846.6,1846.4,5.41571683]
[1746612609565,2.26176695,1846.6,1846.3,10.83220284]
[1746612609773,7.67718021,1846.6,1846.3,5.41606391]
[1746612609976,2.26176695,1846.6,1846.3,5.41606391]
[1746612613075,2.26176695,1846.6,1846.4,5.41592596]
[1746612614595,1.97474605,1846.6,1846.4,5.41592596]
[1746612614785,3.0,1846.8,1846.6,5.41514838]
[1746612616587,10.2,1846.9,1846.6,5.41514838]
[1746612617291,15.6145578,1846.9,1846.6,5.41514838]
[1746612617584,2.26176695,1846.8,1846.5,6.23749993]
[1746612617797,2.26176695,1846.8,1846.5,11.65297514]
[1746612617982,2.26176695,1846.8,1846.5,5.41547521]
[1746612617983,7.67657953,1846.8,1846.5,5.41547521]
[1746612618181,5.26176695,1846.8,1846.5,5.41547521]
[1746612619082,2.26176695,1846.6,1846.3,6.22047898]
[1746612619289,2.26176695,1846.6,1846.4,5.41581218]
[1746612619484,0.8233,1846.7,1846.4,5.41581218]
[1746612619688,0.8233,1846.7,1846.5,5.41564777]
[1746612622398,0.8233,1846.7,1846.4,5.41573989]
[1746612622556,6.23837144,1846.7,1846.4,5.41573989]
[1746612622893,0.8233,1846.7,1846.5,5.41562757]
[1746612623609,0.8233,1846.7,1846.4,5.41573989]
[1746612623906,2.26176695,1846.6,1846.3,5.4160721]
[1746612624082,2.26176695,1846.6,1846.4,5.41575727]
[1746612626071,0.8233,1846.7,1846.5,5.41565123]
[1746612626272,5.26176695,1846.8,1846.5,5.41565123]
[1746612626472,2.26176695,1846.6,1846.4,5.41575727]
[1746612627298,2.26176695,1846.6,1846.4,10.8314862]
[1746612627794,2.26176695,1846.6,1846.4,5.41572893]
[1746612628406,2.26176695,1846.6,1846.3,5.41606379]
[1746612628606,2.26176695,1846.6,1846.3,10.83210872]
[1746612628795,2.26176695,1846.6,1846.4,5.41590536]
[1746612630008,10.67671014,1846.8,1846.4,5.41579706]
[1746612630173,3.0,1846.8,1846.6,5.41525818]
[1746612631217,3.0,1846.8,1846.7,5.41506471]
[1746612631436,3.18869695,1847.0,1846.7,5.41492832]
[1746612631707,3.05816695,1846.8,1846.5,5.41548833]
[1746612632503,3.05816695,1846.8,1846.5,5.41547542]
[1746612632679,3.05816695,1846.8,1846.6,5.41534949]
[1746612633513,3.05816695,1846.8,1846.7,18.0]
[1746612635212,3.05816695,1846.8,1846.6,5.41533154]
[1746612639424,8.47297142,1846.8,1846.5,5.41545186]
[1746612639613,3.05816695,1846.8,1846.5,5.41545186]
[1746612641088,3.05816695,1846.8,1846.5,10.83090559]
[1746612641531,3.05816695,1846.8,1846.5,5.41544293]
[1746612641678,3.0,1846.9,1846.6,6.22066684]
[1746612641885,3.0,1846.9,1846.7,5.41488532]
[1746612642831,3.0,1846.9,1846.6,6.22066684]
[1746612643537,8.41448062,1846.9,1846.6,6.22066684]
[1746612645746,3.0,1846.9,1846.6,6.22066684]
[1746612647003,8.41454956,1846.9,1846.6,6.22066684]
[1746612647205,8.41454956,1846.9,1846.6,5.41516684]
[1746612648431,3.0,1846.9,1846.6,5.41516684]
[1746612648640,8.41452232,1846.9,1846.6,5.41516684]
[1746612650143,3.0,1846.9,1846.6,5.41515017]
[1746612650638,8.41451123,1846.9,1846.5,6.24066584]
[1746612650812,8.41451123,1846.9,1846.6,5.41531403]
[1746612651539,3.0,1846.9,1846.6,5.41531403]
[1746612653043,3.0,1846.9,1846.6,10.83045922]
[1746612653244,3.0,1847.1,1846.8,5.41477149]
[1746612653542,3.0,1847.1,1846.9,5.41441919]
[1746612653747,24.11886478,1847.2,1846.8,6.19277149]
[1746612654043,5.41397339,1847.1,1846.7,5.4148532]
[1746612654247,2.26176695,1847.0,1846.7,5.4148532]
[1746612655344,7.6760653,1847.0,1846.7,5.4148532]
[1746612655940,8.35583612,1847.0,1846.7,5.4148532]
[1746612656115,0.8003,1846.9,1846.6,10.83028622]
[1746612656445,0.8003,1846.9,1846.6,10.83029448]
[1746612657349,0.8003,1846.9,1846.7,5.41503425]
[1746612657641,0.8003,1846.9,1846.6,5.41514145]
[1746612657822,2.26176695,1846.8,1846.6,5.41514145]
[1746612661154,2.26176695,1846.8,1846.7,18.0]
[1746612661327,2.26176695,1846.8,1846.7,23.41506471]
[1746612661531,0.8003,1846.9,1846.7,23.41506471]
[1746612661856,0.8003,1846.9,1846.7,23.41489773]
[1746612662231,2.26176695,1847.0,1846.7,23.41489773]
[1746612662723,2.26176695,1847.0,1846.7,5.41489773]
[1746612662923,6.18796645,1847.1,1846.8,5.41474334]
[1746612663227,5.41373973,1847.2,1846.8,5.41467622]
[1746612663434,2.26176695,1846.9,1846.6,5.41517318]
[1746612664056,2.26176695,1846.9,1846.6,10.83038657]
[1746612664254,2.26176695,1846.9,1846.6,5.41517318]
[1746612664463,6.24397479,1847.0,1846.7,5.41478396]
[1746612664464,0.50772582,1846.8,1846.7,5.41478396]
[1746612664634,0.50772582,1846.8,1846.7,5.95626236]
[1746612664968,0.50772582,1846.8,1846.7,6.8225086]
[1746612665530,6.1923644,1847.4,1847.0,5.4139204]
[1746612665760,6.1923644,1847.4,1847.0,10.8278408]
[1746612666362,6.19222293,1847.4,1847.1,5.4137462]
[1746612666665,0.50719735,1847.3,1847.1,5.4137462]
[1746612667045,0.50719735,1847.2,1847.1,5.4137462]
[1746612669670,0.50719735,1847.2,1847.1,6.57171286]
[1746612670372,0.50719735,1847.2,1847.1,6.62584779]
[1746612671460,0.50670977,1847.2,1847.1,6.57171286]
[1746612674935,0.50670977,1847.2,1847.1,1.15796666]
[1746612675136,0.50670977,1847.2,1847.0,5.41404941]
[1746612675430,2.26176695,1847.1,1846.8,6.20241732]
[1746612675633,0.50670977,1847.0,1846.8,10.82920436]
[1746612675865,0.50670977,1847.0,1846.8,5.41458704]
[1746612676073,0.50670977,1847.0,1846.9,5.41447831]
[1746612677574,2.26176695,1847.1,1846.9,23.41447831]
[1746612677879,7.67569577,1847.1,1846.9,18.0]
[1746612678035,6.18308516,1847.0,1846.9,18.0]
[1746612678239,0.7689,1847.0,1846.9,18.0]
[1746612678573,1.27545262,1847.0,1846.9,18.0]
[1746612679141,6.68963778,1847.0,1846.9,18.0]
[1746612679579,5.41457873,1846.9,1846.6,3.5916117]
[1746612679879,7.67634568,1846.9,1846.6,9.00693995]
[1746612680077,7.67634568,1846.9,1846.6,5.41532825]
[1746612680280,0.50655262,1846.8,1846.6,5.41532825]
[1746612680647,0.50655262,1846.7,1846.6,6.49825441]
[1746612680983,0.50655262,1846.7,1846.6,7.32265441]
[1746612681481,0.50655262,1846.9,1846.7,5.41489325]
[1746612682189,0.50655262,1846.8,1846.7,5.41489325]
[1746612682477,0.50655262,1846.8,1846.6,7.32265441]
[1746612682686,0.50655262,1846.8,1846.6,1.08309621]
[1746612682885,0.50655262,1846.7,1846.5,5.41557879]
[1746612683791,0.50655262,1846.6,1846.5,5.41557879]
[1746612683992,0.50655262,1846.6,1846.4,5.41582612]
[1746612684151,3.07876695,1846.7,1846.5,5.4154766]
[1746612684987,0.817,1846.7,1846.5,5.4154766]
[1746612685192,0.50661328,1846.6,1846.5,5.4154766]
[1746612685494,0.50661328,1846.6,1846.5,23.4154766]
[1746612686896,0.50661328,1846.6,1846.5,18.0]
[1746612687394,0.50661328,1846.6,1846.4,5.41575973]
[1746612687995,3.07876695,1846.7,1846.4,10.83150897]
[1746612688195,3.07876695,1846.7,1846.4,10.8314954]
[1746612689094,0.5064132,1846.6,1846.4,10.83147557]
[1746612689296,0.5064132,1846.6,1846.4,5.41572941]
[1746612689674,3.07876695,1846.7,1846.4,10.83145909]
[1746612689879,3.07876695,1846.7,1846.4,5.41572941]
[1746612690699,0.50630011,1846.6,1846.5,23.41556463]
[1746612691016,0.50630011,1846.6,1846.5,24.19346463]
[1746612691367,3.01596695,1846.9,1846.6,5.41509957]
[1746612691999,0.50626348,1846.8,1846.6,5.41509957]
[1746612692202,0.50626348,1846.8,1846.7,5.41506471]
[1746612692575,0.50626348,1846.8,1846.7,5.46920963]
[1746612692800,0.50626348,1846.8,1846.7,7.33554055]
[1746612693008,0.50626348,1846.8,1846.7,7.28139563]
[1746612693205,0.7915,1847.3,1847.0,5.41391265]
[1746612693572,0.50613814,1847.2,1847.0,5.41391265]
[1746612694199,0.50613814,1847.1,1847.0,5.41391265]
[1746612695213,0.50613814,1847.2,1847.0,5.41391265]
[1746612695515,0.50613814,1847.1,1847.0,5.41391265]
[1746612695813,0.50613814,1847.1,1846.9,5.41433318]
[1746612696003,2.26176695,1847.0,1846.8,5.41464588]
[1746612696710,0.50613814,1846.9,1846.8,5.41464588]
[1746612697613,0.50613814,1846.9,1846.7,5.41488216]
[1746612698216,0.50613814,1846.9,1846.7,5.41486182]
[1746612698415,0.50613814,1846.9,1846.6,5.41522559]
[1746612698615,3.06486695,1847.0,1846.6,5.41522559]
[1746612698821,0.30648669,1846.9,1846.6,5.41522559]
[1746612699006,5.72107549,1846.9,1846.5,6.21639212]
[1746612699324,2.76811329,1846.8,1846.6,5.41526579]
[1746612699621,2.76811329,1846.8,1846.6,23.41526579]
[1746612699826,0.50634634,1846.7,1846.6,23.41526579]
[1746612701123,0.50634634,1846.7,1846.6,18.0]
[1746612701728,0.50634634,1846.7,1846.6,23.41535795]
[1746612702027,1.32814634,1846.7,1846.6,18.0]
[1746612702196,2.2286153,1846.7,1846.6,18.0]
[1746612702531,7.64368001,1846.7,1846.6,18.0]
[1746612703921,8.19368001,1846.7,1846.6,18.0]
[1746612704234,8.19368001,1846.7,1846.3,16.27006055]
[1746612704412,7.29321105,1846.7,1846.3,16.27006055]
[1746612704792,7.29321105,1846.7,1846.3,16.2700632]
[1746612704998,0.50634634,1846.6,1846.3,16.2700632]
[1746612705198,0.50634634,1846.6,1846.4,5.41591771]
[1746612705399,0.50634634,1846.5,1846.4,5.41572972]
[1746612706630,0.50634634,1846.5,1846.4,6.22712972]
[1746612706814,0.50634634,1846.5,1846.4,7.85411364]
[1746612708422,0.50634634,1846.7,1846.5,5.41548568]
[1746612709046,0.50634634,1846.6,1846.4,29.64301574]
[1746612709204,0.50634634,1846.6,1846.5,5.41565123]
[1746612711745,0.50634634,1846.6,1846.4,5.41580426]
[1746612711918,0.50634634,1846.6,1846.4,10.83156378]
[1746612712122,0.50634634,1846.5,1846.4,5.41575952]
[1746612716649,0.50634634,1846.5,1846.3,5.41602454]
[1746612717226,0.50634634,1846.4,1846.3,5.41602454]
[1746612718947,0.50634634,1846.4,1846.3,5.47018032]
[1746612719136,0.50634634,1846.7,1846.4,5.41571179]
[1746612719746,0.50634634,1846.6,1846.4,5.41571179]
[1746612720250,0.50634634,1846.5,1846.4,5.41571179]
[1746612720454,0.50634634,1846.5,1846.4,23.41571179]
[1746612720616,0.50634634,1846.5,1846.4,18.0]
[1746612720948,1.33414634,1846.5,1846.4,18.0]
[1746612721326,0.50634634,1846.5,1846.4,23.41594454]
[1746612721752,0.50634634,1846.5,1846.4,5.41594454]
[1746612722642,0.50634634,1846.5,1846.4,6.63170712]
[1746612722814,0.50634634,1846.5,1846.4,6.57755139]
[1746612724048,0.50634634,1846.7,1846.6,5.41535795]
[1746612724969,0.50634634,1846.7,1846.6,6.30270938]
[1746612726768,0.50634634,1846.7,1846.6,6.24855795]
[1746612726972,0.50634634,1846.7,1846.6,5.41535795]
[1746612727267,0.50634634,1846.7,1846.6,23.41535795]
[1746612727675,1.05634634,1846.7,1846.6,18.0]
[1746612727841,7.42115969,1846.7,1846.6,18.0]
[1746612728042,2.00609498,1846.7,1846.6,18.0]
[1746612728732,1.05634634,1846.7,1846.6,18.0]
[1746612732349,7.26451105,1846.7,1846.6,18.0]
[1746612732557,0.55,1846.5,1846.2,11.6036038]
[1746612732867,0.55,1846.5,1846.2,6.1871661]
[1746612733071,0.50634634,1846.4,1846.2,6.1871661]
[1746612733267,0.50634634,1846.4,1846.2,6.18711141]
[1746612733470,0.50634634,1846.3,1846.2,6.18711141]
[1746612733769,0.50634634,1846.3,1846.1,5.41661989]
[1746612733952,0.50634634,1846.2,1846.1,5.41661989]
[1746612735983,0.50634634,1846.2,1846.1,23.41661989]
[1746612737278,0.91485901,1846.2,1846.1,18.0]
[1746612737491,3.17662596,1846.2,1846.1,18.0]
[1746612737852,2.76811329,1846.2,1846.1,18.0]
[1746612739987,4.07181329,1846.2,1846.1,18.0]
[1746612740361,0.50634634,1846.2,1846.1,18.0]
[1746612740566,0.50634634,1846.2,1846.1,23.41682465]
[1746612743083,0.50634634,1846.2,1846.1,5.41682465]
[1746612743448,0.50634634,1846.2,1846.0,6.19711895]
[1746612743789,0.4066826,1846.3,1846.1,5.41682465]
[1746612743946,5.96603295,1846.4,1846.1,5.41682465]
[1746612744151,5.96603295,1846.4,1846.1,5.41682408]
[1746612744448,0.50677501,1846.3,1846.1,5.41665178]
[1746612744849,0.50677501,1846.2,1846.1,5.41665178]
[1746612745790,0.7688,1846.1,1845.6,3.5916117]
[1746612745954,3.03056695,1845.9,1845.6,3.5916117]
[1746612746153,0.7688,1845.9,1845.7,5.41787713]
[1746612746359,5.96726124,1846.0,1845.7,5.41787713]
[1746612746559,0.50677501,1845.9,1845.7,5.41787713]
[1746612747088,0.50677501,1845.9,1845.7,6.26895047]
[1746612747260,0.55,1846.0,1845.7,6.21477713]
[1746612747990,5.967128,1846.0,1845.7,6.21477713]
[1746612748292,8.22889495,1846.0,1845.6,9.76873175]
[1746612748493,0.50648275,1845.9,1845.6,9.76873175]
[1746612749005,0.50648275,1845.8,1845.6,9.00973175]
[1746612749205,0.50648275,1845.8,1845.6,3.5916117]
[1746612749371,10.83519737,1845.9,1845.6,3.5916117]
[1746612749570,6.16762656,1845.9,1845.6,3.5916117]
[1746612749976,8.18588728,1845.8,1845.6,3.5916117]
[1746612750163,2.76797274,1845.8,1845.6,3.5916117]
[1746612750457,0.50620579,1845.7,1845.6,3.5916117]
[1746612750898,0.50620579,1845.7,1845.6,5.41829215]
[1746612751595,0.50620579,1845.8,1845.6,5.41829215]
[1746612751995,0.50620579,1845.8,1845.6,5.41807668]
[1746612752192,0.7501,1845.9,1845.6,5.41807668]
[1746612752696,0.55,1846.0,1845.7,0.7568]
[1746612752887,0.55,1846.0,1845.7,0.81097772]
[1746612753194,0.55,1846.0,1845.8,5.41759934]
[1746612753369,0.50579362,1845.9,1845.8,5.41759934]
[1746612755709,0.50579362,1845.9,1845.8,5.47177293]
[1746612755913,10.2,1846.2,1846.0,5.41701246]
[1746612756207,0.55,1846.2,1846.0,5.41701246]
[1746612756389,0.50584551,1846.1,1846.0,5.41701246]
[1746612763011,0.50682834,1846.1,1846.0,5.41701246]
[1746612765024,0.50682834,1846.1,1846.0,6.23891246]
[1746612765229,0.50682834,1846.1,1846.0,7.40993735]
[1746612765418,0.50682834,1846.1,1846.0,7.46410095]
[1746612765729,0.40102818,1846.4,1846.2,5.41649163]
[1746612766028,9.02258181,1846.5,1846.2,5.41649163]
[1746612766229,0.50695972,1846.3,1846.2,5.41649163]
[1746612767402,0.50695972,1846.3,1846.2,6.5052391]
[1746612767793,0.50695972,1846.3,1846.2,7.34729748]
[1746612767995,3.08606695,1846.8,1846.5,5.41560307]
[1746612768492,6.03418433,1847.2,1846.7,5.41483894]
[1746612768493,5.41408137,1847.1,1846.7,5.41483894]
[1746612768698,0.50651754,1847.0,1846.7,5.4148276]
[1746612768898,4.32475413,1847.0,1846.7,5.4148276]
[1746612769298,2.76828449,1846.9,1846.7,5.4148276]
[1746612770017,0.50651754,1846.8,1846.7,5.4148276]
[1746612771440,2.26176695,1846.9,1846.7,5.4148276]
[1746612771628,2.67380792,1846.9,1846.7,5.4148276]
[1746612772016,2.67380792,1846.9,1846.7,5.41485343]
[1746612772827,2.26176695,1846.9,1846.8,5.41477149]
[1746612776008,0.41198247,1847.0,1846.8,5.41477149]
[1746612776209,3.61346695,1847.1,1846.9,5.41447831]
[1746612776433,3.61346695,1847.1,1846.8,6.50294855]
[1746612776739,3.61346695,1847.1,1846.8,5.41455184]
[1746612778443,2.26176695,1847.1,1846.9,5.41447111]
[1746612778643,2.26176695,1847.2,1847.0,5.41407735]
[1746612779251,2.26176695,1847.2,1846.9,6.21767111]
[1746612779424,2.65813848,1847.2,1846.9,6.21767111]
[1746612780555,8.07177612,1847.2,1846.9,6.21767111]
[1746612781066,2.26176695,1847.0,1846.9,6.21767111]
[1746612782072,2.26176695,1847.0,1846.9,5.55100444]
[1746612782367,2.26176695,1847.0,1846.9,0.8032]
[1746612782532,2.26176695,1847.0,1846.8,6.20197862]
[1746612782937,2.26176695,1847.0,1846.8,6.20195544]
[1746612783231,2.26176695,1847.0,1846.9,5.41447831]
[1746612785573,2.65813848,1847.2,1846.9,10.82874454]
[1746612785869,2.26176695,1847.2,1847.0,5.41409509]
[1746612786539,0.55,1847.3,1847.0,0.05413653]
[1746612786868,0.66666667,1847.4,1847.3,6.2378059]
[1746612788276,0.66666667,1847.4,1847.3,6.29192812]
[1746612792174,0.66666667,1847.4,1847.3,6.2378059]
[1746612792475,0.66666667,1847.4,1847.3,6.29192706]
[1746612792675,0.66666667,1847.4,1847.3,6.2378059]
[1746612792875,0.66666667,1847.4,1847.3,25.40292855]
[1746612793866,2.26176695,1847.8,1847.5,5.41251285]
[1746612794464,2.26176695,1847.8,1847.5,5.4125071]
[1746612794674,2.26176695,1847.8,1847.5,10.82501854]
[1746612795088,2.26176695,1847.8,1847.6,5.41239488]
[1746612795277,0.55,1847.8,1847.6,5.41222687]
[1746612795465,2.81176695,1847.8,1847.6,5.41222687]
[1746612796210,10.83012209,1848.1,1847.8,5.4117411]
[1746612796211,6.23277128,1848.1,1847.8,5.4117411]
[1746612796495,2.26176695,1848.0,1847.8,5.4117411]
[1746612796659,2.26176695,1848.0,1847.8,23.4117411]
[1746612796860,2.26176695,1848.0,1847.8,18.0]
[1746612797467,2.26176695,1848.0,1847.7,5.41195002]
[1746612798260,2.26176695,1848.0,1847.7,5.41194178]
[1746612798992,2.26176695,1848.0,1847.7,5.41192561]
[1746612799563,7.67302842,1848.0,1847.7,5.41192561]
[1746612799887,2.26176695,1848.0,1847.7,5.41192561]
[1746612801107,2.26176695,1847.8,1847.7,5.41192561]
[1746612801916,2.81176695,1848.0,1847.7,10.82385718]
[1746612802317,2.81176695,1848.0,1847.8,5.41178439]
[1746612802484,2.81176695,1848.0,1847.7,5.41192561]
[1746612803921,8.22311422,1848.0,1847.7,5.41192561]
[1746612804113,9.66870277,1848.0,1847.7,5.41192561]
[1746612804325,0.50465823,1847.9,1847.7,5.41192561]
[1746612804625,3.03486695,1847.8,1847.5,16.24203043]
[1746612804920,3.03486695,1847.8,1847.5,10.82951213]
[1746612805226,8.44673409,1847.8,1847.4,6.17120789]
[1746612805429,4.42070146,1847.8,1847.5,5.41258657]
[1746612805725,9.83266016,1847.8,1847.5,5.41258657]
[1746612806395,4.42070146,1847.8,1847.5,5.41258657]
[1746612806616,4.42070146,1847.8,1847.6,18.0]
[1746612807505,4.42070146,1847.8,1847.6,28.82465739]
[1746612807826,3.03486695,1847.8,1847.6,23.41221838]
[1746612808028,3.58486695,1847.8,1847.7,5.412134]
[1746612808514,0.50505916,1847.8,1847.7,5.412134]
[1746612808700,0.50505916,1847.8,1847.6,23.41221049]
[1746612808902,7.67333604,1847.9,1847.6,23.41221049]
[1746612809100,9.20430673,1847.9,1847.6,23.41221049]
[1746612809632,0.55,1847.8,1847.6,23.41221049]
[1746612811034,2.26176695,1847.7,1847.6,18.0]
[1746612811441,2.7671586,1847.7,1847.6,18.0]
[1746612812329,3.5930586,1847.7,1847.6,18.0]
[1746612812533,4.54856252,1847.7,1847.6,18.0]
[1746612813137,5.09856252,1847.7,1847.6,18.0]
[1746612813329,10.51069652,1847.7,1847.6,18.0]
[1746612814335,13.51069652,1847.7,1847.6,18.0]
[1746612814938,5.9624717,1847.6,1847.3,5.41330134]
[1746612815154,7.90978852,1847.6,1847.3,5.41330134]
[1746612815450,0.50539165,1847.5,1847.3,5.41330134]
[1746612815663,0.50539165,1847.5,1847.3,10.82640152]
[1746612815944,2.49731682,1847.6,1847.4,5.41301288]
[1746612816329,0.50658756,1847.5,1847.4,5.41301288]
[1746612816531,0.50658756,1847.5,1847.3,5.41312345]
[1746612816934,0.50658756,1847.4,1847.3,5.41312345]
[1746612817577,0.50658756,1847.4,1847.2,10.81559832]
[1746612818261,0.50658756,1847.3,1847.2,10.81559832]
[1746612819148,0.50658756,1847.3,1847.2,5.402]
[1746612819451,0.50658756,1847.3,1847.2,10.81559896]
[1746612819952,0.50658756,1847.3,1847.2,5.41359896]
[1746612820426,8.18174211,1847.3,1847.0,5.41402629]
[1746612820744,9.54123748,1847.3,1846.9,17.05942764]
[1746612820956,0.50658756,1847.2,1846.9,17.05940954]
[1746612821120,0.50658756,1847.1,1846.9,11.64507207]
[1746612821312,0.50658756,1847.1,1847.0,18.0]
[1746612824118,0.50658756,1847.2,1847.0,18.0]
[1746612824313,5.92039669,1847.2,1847.0,18.0]
[1746612824853,0.50658756,1847.1,1847.0,18.0]
[1746612827670,0.50658756,1847.1,1846.9,5.41440975]
[1746612827879,6.99012302,1847.2,1846.9,5.41440975]
[1746612828178,8.22571602,1847.1,1846.8,24.92760142]
[1746612828476,2.81176695,1847.1,1846.8,24.92755751]
[1746612828640,0.50582695,1847.0,1846.8,24.92755751]
[1746612828841,0.50582695,1847.0,1846.9,5.41447831]
[1746612829055,2.81176695,1847.1,1846.9,5.41447831]
[1746612830109,2.81176695,1847.1,1846.8,24.92755751]
[1746612830110,5.41437494,1847.0,1846.7,6.1856]
[1746612830401,15.49121072,1847.1,1846.7,6.19760743]
[1746612830576,5.41421585,1847.0,1846.7,5.41500743]
[1746612830778,5.41421585,1847.0,1846.6,10.81814536]
[1746612830986,5.41421585,1847.0,1846.6,16.23328955]
[1746612831702,6.96334359,1847.0,1846.6,16.23334761]
[1746612831999,0.50569708,1846.9,1846.7,5.41495962]
[1746612832582,6.96334359,1847.0,1846.7,5.41495962]
[1746612833566,0.50568386,1846.9,1846.7,5.41495962]
[1746612833865,5.41421585,1847.0,1846.7,5.41495962]
[1746612834297,5.41421585,1847.0,1846.6,10.83034234]
[1746612834469,15.49119539,1847.1,1846.7,5.41493978]
[1746612834800,6.96332262,1847.0,1846.7,5.41493978]
[1746612835099,6.96332262,1847.0,1846.7,23.41493978]
[1746612835300,0.50567994,1846.9,1846.7,23.41493978]
[1746612835600,15.49119417,1847.1,1846.7,23.41493978]
[1746612835795,5.91989428,1847.0,1846.7,23.41493978]
[1746612836009,7.51958951,1847.0,1846.7,18.0]
[1746612836169,0.50568719,1846.9,1846.7,18.0]
[1746612836369,8.18196451,1846.9,1846.7,18.0]
[1746612836802,7.67627732,1846.9,1846.7,18.0]
[1746612837222,6.73497149,1846.8,1846.7,18.0]
[1746612837380,8.68183153,1846.8,1846.7,18.0]
[1746612838290,8.68183153,1846.8,1846.4,11.62607325]
[1746612838491,2.26176695,1846.7,1846.4,11.62607325]
[1746612838783,2.76750211,1846.7,1846.5,5.4156426]
[1746612838978,2.76750211,1846.7,1846.4,6.22205736]
[1746612839284,2.26176695,1846.7,1846.4,6.22205736]
[1746612839487,2.26176695,1846.7,1846.4,11.63781571]
[1746612839799,7.67683359,1846.7,1846.3,10.82008175]
[1746612840004,2.26176695,1846.5,1846.2,15.2182376]
[1746612840209,2.26176695,1846.3,1846.2,3.5916117]
[1746612840408,2.26176695,1846.3,1846.0,15.19514528]
[1746612840611,0.50583405,1846.4,1846.2,5.41650508]
[1746612841128,0.50583405,1846.4,1846.2,23.41650508]
[1746612843614,0.50583405,1846.4,1846.2,18.0]
[1746612843810,2.26176695,1846.3,1846.2,18.0]
[1746612844015,7.67800483,1846.3,1846.2,18.0]
[1746612844217,8.22800483,1846.3,1846.2,18.0]
[1746612844532,8.73383888,1846.3,1846.2,18.0]
[1746612844922,9.49303888,1846.3,1846.2,18.0]
[1746612845141,13.98394966,1846.3,1846.2,18.0]
[1746612847692,0.55,1846.0,1845.7,5.41790601]
[1746612847921,2.81176695,1846.0,1845.7,5.41776907]
[1746612848231,2.81176695,1846.0,1845.7,5.41787428]
[1746612848601,2.26176695,1845.8,1845.6,5.4181218]
[1746612848802,2.67459978,1845.8,1845.5,5.41843173]
[1746612850110,2.67459978,1845.8,1845.5,5.4184043]
[1746612850433,2.67459978,1845.8,1845.4,6.18451564]
[1746612850610,2.67459978,1845.8,1845.5,5.41830468]
[1746612850810,2.67459978,1845.8,1845.6,5.41819772]
[1746612851431,2.67459978,1845.8,1845.5,5.41830468]
[1746612851607,0.55,1845.7,1845.4,6.18458733]
[1746612851816,2.26176695,1845.6,1845.3,5.41900443]
[1746612852926,7.68011847,1845.6,1845.2,31.14026072]
[1746612853134,8.43391847,1845.6,1845.3,5.4191409]
[1746612853833,0.55,1845.5,1845.3,5.4191409]
[1746612854731,0.55,1845.5,1845.2,25.721]
[1746612854931,0.55,1845.5,1845.4,18.0]
[1746612855147,0.55,1845.5,1845.4,23.41887937]
[1746612857061,2.26176695,1845.6,1845.4,23.41887937]
[1746612857641,2.26176695,1845.6,1845.4,5.41887937]
[1746612860960,2.26176695,1845.6,1845.4,5.41868243]
[1746612861460,2.26176695,1845.6,1845.4,10.83735328]
[1746612861665,2.26176695,1845.6,1845.4,5.41867085]
[1746612862357,2.26176695,1845.6,1845.5,5.41858574]
[1746612862525,2.26176695,1845.6,1845.4,5.41867085]
[1746612862730,2.26176695,1845.6,1845.5,5.41858574]
[1746612865549,3.49779978,1845.8,1845.6,5.4180206]
[1746612865752,0.41283283,1845.8,1845.7,5.41799859]
[1746612866060,2.26176695,1845.9,1845.7,5.41799859]
[1746612866568,0.50526346,1845.8,1845.7,5.41799859]
[1746612867750,0.50526346,1845.8,1845.7,6.17169859]
[1746612867950,0.50526346,1845.8,1845.7,5.41799859]
[1746612868158,0.50526346,1845.8,1845.6,5.4180206]
[1746612868363,0.50526346,1845.8,1845.6,6.14356523]
[1746612868570,0.50526346,1845.8,1845.7,5.41799859]
[1746612869194,0.50526346,1845.8,1845.6,6.14356523]
[1746612869350,2.26176695,1845.7,1845.5,6.17211964]
[1746612869552,2.26176695,1845.7,1845.4,5.41867492]
[1746612869784,2.26176695,1845.5,1845.4,5.41867492]
[1746612870197,2.76814831,1845.5,1845.4,5.41867492]
[1746612870403,2.76818346,1845.5,1845.4,5.41867492]
[1746612870587,2.76818346,1845.5,1845.4,6.58447686]
[1746612870588,0.50641651,1845.5,1845.4,6.58447686]
[1746612870796,2.26176695,1845.7,1845.5,5.4183704]
[1746612871520,0.50639417,1845.6,1845.5,5.4183704]
[1746612880729,0.50639417,1845.6,1845.4,6.58447686]
[1746612880930,0.50639417,1845.6,1845.4,12.00314419]
[1746612881135,0.50639417,1845.5,1845.4,6.58446927]
[1746612881594,2.76816112,1845.5,1845.4,6.58468131]
[1746612881794,2.76816112,1845.5,1845.4,5.41887937]
[1746612883045,2.76816112,1845.5,1845.3,6.23934181]
[1746612883046,2.76816112,1845.5,1845.3,5.41901195]
[1746612883410,0.50639417,1845.4,1845.3,5.41901195]
[1746612885247,0.50639417,1845.4,1845.3,23.41901195]
[1746612892048,0.50639417,1845.4,1845.3,29.9158804]
[1746612897333,0.50639417,1845.4,1845.3,11.9158804]
[1746612902021,0.55,1845.1,1844.8,4.72143377]
[1746612902220,2.26176695,1844.9,1844.8,4.72143377]
[1746612902463,2.26176695,1845.1,1844.8,4.72143377]
[1746612902658,2.26176695,1845.1,1844.9,5.42015913]
[1746612902843,0.8043,1845.2,1845.0,5.4200542]
[1746612902844,2.26176695,1845.2,1845.0,5.4200542]
[1746612903237,0.50779711,1845.1,1844.9,5.4202738]
[1746612903433,2.26176695,1845.0,1844.8,4.72143377]
[1746612903760,2.76956406,1845.0,1844.8,10.14200677]
[1746612904265,0.50779711,1844.9,1844.8,10.14200677]
[1746612904671,0.50779711,1844.9,1844.8,12.53498287]
[1746612904870,0.50779711,1844.9,1844.8,12.48078193]